[Event "1st Bangalore GM-Open-A 2024"]
[Site "Bangalore"]
[Date "2024.01.23"]
[Round "7.38"]
[White "Sathvik Adiga"]
[Black "Moksh Amit Doshi"]
[Result "1/2-1/2"]
[ECO "B44"]
[WhiteElo "2142"]
[BlackElo "2355"]
[Annotator "RC"]
[PlyCount "132"]
[EventDate "2024.01.20"]
[EventType "swiss"]
[EventCountry "IND"]
[SourceTitle "playchess.com"]
[Source "ChessBase"]
[SourceQuality "1"]
[TimeControl "5400+30"]

1. e4 {[%emt 0:00:04]} c5 {[%emt 0:01:05]} 2. Nf3 {[%emt 0:00:13]} e6 {[%emt 0:00:07]} 3. d4 {[%emt 0:00:07]} cxd4 {[%emt 0:00:04]} 4. Nxd4 {[%emt 0:00:07]} Nc6 {[%emt 0:00:05]} 5. Bf4 {[%emt 0:00:26]} d6 {[%emt 0:04:32]} 6. Nxc6 {[%emt 0:07:22]} bxc6 {[%emt 0:00:11]} 7. c4 {[%emt 0:00:06]} e5 {[%emt 0:02:57]} 8. Bg3 {[%emt 0:05:54]} Nf6 {[%emt 0:04:41]} 9. Nc3 {[%emt 0:00:36]} Qb6 {[%emt 0:02:21]} 10. Qd2 {[%emt 0:01:47]} Be7 {[%emt 0:01:18]} 11. Be2 {[%emt 0:01:02]} O-O {[%emt 0:01:00]} 12. O-O {[%emt 0:00:52]} Be6 {[%emt 0:01:44]} 13. b3 {[%emt 0:06:55]} Nd7 {[%emt 0:04:05]} 14. Kh1 {[%emt 0:02:04]} Rad8 {[%emt 0:06:21]} 15. Rad1 {[%emt 0:09:17]} Nc5 {[%emt 0:03:10]} 16. f3 {[%emt 0:05:57]} a5 {[%emt 0:03:22]} 17. Bf2 {[%emt 0:02:20]} Qb4 {[%emt 0:00:23]} 18. Qc2 {[%emt 0:13:53]} f5 {[%emt 0:04:13]} 19. Bxc5 {[%emt 0:02:10]} Qxc5 {[%emt 0:00:23]} 20. exf5 {[%emt 0:00:16]} Rxf5 {[%emt 0:01:26]} 21. Bd3 {[%emt 0:00:54]} Rh5 {[%emt 0:00:48]} 22. Ne4 {[%emt 0:00:41]} Qe3 {[%emt 0:02:23]} 23. Ng3 {[%emt 0:06:00]} Rh6 {[%emt 0:02:32]} 24. Bf5 {[%emt 0:01:55]} Qf4 {[%emt 0:09:36]} 25. Bxe6+ {[%emt 0:00:21]} Rxe6 {[%emt 0:00:05]} 26. Qe4 {[%emt 0:01:49]} Bg5 {[%emt 0:04:33]} 27. Rfe1 {[%emt 0:05:22]} Qxe4 {[%emt 0:02:54]} 28. fxe4 {[%emt 0:00:45]} g6 {[%emt 0:02:42]} 29. Rd3 {[%emt 0:02:06]} Rb8 {[%emt 0:03:09]} 30. Red1 {[%emt 0:01:01]} Be7 {[%emt 0:00:07]} 31. Nf1 {[%emt 0:03:47]} Kf7 {[%emt 0:03:41]} 32. Ne3 {[%emt 0:01:28]} Ke8 {[%emt 0:02:16]} 33. Kg1 {[%emt 0:01:55]} Rb4 {[%emt 0:03:45]} 34. a3 {[%emt 0:02:55]} Rb8 {[%emt 0:01:40]} 35. c5 {[%emt 0:02:56]} dxc5 {[%emt 0:02:00]} 36. Nc4 {[%emt 0:00:18]} Bd8 {[%emt 0:02:17]} 37. Rd7 {[%emt 0:02:06]} Re7 {[%emt 0:02:09]} 38. Rxe7+ {[%emt 0:03:04]} Bxe7 {[%emt 0:02:07]} 39. Nxa5 {[%emt 0:00:16]} Rb5 {[%emt 0:00:57]} 40. Nxc6 {[%emt 0:00:30]} Rxb3 {[%emt 0:00:05]} 41. Nxe7 {[%emt 0:06:41]} Kxe7 {[%emt 0:00:39]} 42. Rd5 {[%emt 0:00:02]} c4 {[%emt 0:01:37]} 43. Rc5 {[%emt 0:00:33]} c3 {[%emt 0:00:21]} 44. a4 {[%emt 0:00:07]} Kd6 {[%emt 0:01:13]} 45. Rc4 {[%emt 0:00:17]} Rb1+ {[%emt 0:00:47]} 46. Kf2 {[%emt 0:00:07]} Rb2+ {[%emt 0:00:02]} 47. Kf3 {[%emt 0:00:17]} c2 {[%emt 0:00:21]} 48. a5 {[%emt 0:00:09]} h5 {[%emt 0:00:45]} 49. a6 {[%emt 0:00:10]} Ra2 {[%emt 0:00:14]} 50. a7 {[%emt 0:00:10]} Ra3+ {[%emt 0:00:06]} 51. Kf2 {[%emt 0:00:49]} Rxa7 {[%emt 0:00:16]} 52. Rxc2 {[%emt 0:00:10]} Ra4 {[%emt 0:00:14]} 53. Ke3 {[%emt 0:00:56]} Ra3+ {[%emt 0:00:06]} 54. Ke2 {[%emt 0:00:07]} g5 {[%emt 0:01:31]} 55. Rd2+ {[%emt 0:00:08]} Ke6 {[%emt 0:00:08]} 56. Rb2 {[%emt 0:00:32]} Ra6 {[%emt 0:00:39]} 57. h3 {[%emt 0:01:00]} Kf6 {[%emt 0:00:53]} 58. Rb3 {[%emt 0:00:46]} g4 {[%emt 0:00:14]} 59. hxg4 {[%emt 0:02:32]} hxg4 {[%emt 0:00:25]} 60. Rb4 {[%emt 0:00:56]} Ra3 {[%emt 0:01:37]} 61. Rb5 {[%emt 0:01:08]} g3 {[%emt 0:00:45]} 62. Rc5 {[%emt 0:00:32]} Kg5 {[%emt 0:00:30]} 63. Rxe5+ {[%emt 0:00:36]} Kf4 {[%emt 0:00:05]} 64. Rd5 {[%emt 0:00:14]} Kxe4 {[%emt 0:01:24]} 65. Rd2 {[%emt 0:00:30]} Ra1 {[%emt 0:00:29]} 66. Rb2 {[%emt 0:00:09]} Ra4 {[%emt 0:00:10]} 1/2-1/2

[Event "1st Bangalore GM-Open-A 2024"]
[Site "Bangalore"]
[Date "2024.01.23"]
[Round "7.39"]
[White "Pattnayak Nilsu"]
[Black "Laxman, R.R."]
[Result "0-1"]
[ECO "C67"]
[WhiteElo "1987"]
[BlackElo "2338"]
[Annotator "RC"]
[PlyCount "140"]
[EventDate "2024.01.20"]
[EventType "swiss"]
[EventCountry "IND"]
[SourceTitle "playchess.com"]
[Source "ChessBase"]
[SourceQuality "1"]
[TimeControl "5400+30"]

1. e4 {[%emt 0:00:38]} e5 {[%emt 0:00:10]} 2. Nf3 {[%emt 0:00:05]} Nc6 {[%emt 0:00:04]} 3. Bb5 {[%emt 0:00:04]} Nf6 {[%emt 0:00:35]} 4. O-O {[%emt 0:00:06]} Nxe4 {[%emt 0:00:03]} 5. Re1 {[%emt 0:01:20]} Nd6 {[%emt 0:01:30]} 6. Bxc6 {[%emt 0:04:52]} dxc6 {[%emt 0:00:50]} 7. Nxe5 {[%emt 0:01:26]} Be7 {[%emt 0:00:36]} 8. d4 {[%emt 0:00:19]} O-O {[%emt 0:00:22]} 9. Nd2 {[%emt 0:00:58]} Be6 {[%emt 0:01:59]} 10. Ndf3 {[%emt 0:04:35]} a5 {[%emt 0:01:52]} 11. a4 {[%emt 0:03:09]} Re8 {[%emt 0:00:15]} 12. b3 {[%emt 0:09:27]} Nf5 {[%emt 0:00:48]} 13. Bb2 {[%emt 0:00:24]} Bb4 {[%emt 0:00:22]} 14. c3 {[%emt 0:01:01]} Bd6 {[%emt 0:01:19]} 15. Qc2 {[%emt 0:01:05]} f6 {[%emt 0:01:02]} 16. Nc4 {[%emt 0:05:34]} Qd7 {[%emt 0:01:22]} 17. Nxd6 {[%emt 0:06:09]} cxd6 {[%emt 0:00:37]} 18. c4 {[%emt 0:00:22]} d5 {[%emt 0:00:05]} 19. c5 {[%emt 0:00:16]} Bf7 {[%emt 0:00:47]} 20. Rxe8+ {[%emt 0:15:27]} Rxe8 {[%emt 0:00:08]} 21. Re1 {[%emt 0:00:05]} g5 {[%emt 0:04:59]} 22. Rxe8+ {[%emt 0:05:13]} Bxe8 {[%emt 0:00:04]} 23. h3 {[%emt 0:01:25]} Qe6 {[%emt 0:00:43]} 24. Bc3 {[%emt 0:00:48]} h5 {[%emt 0:00:42]} 25. Qd1 {[%emt 0:02:44]} h4 {[%emt 0:10:19]} 26. Qe1 {[%emt 0:02:54]} Qxe1+ {[%emt 0:00:41]} 27. Nxe1 {[%emt 0:00:11]} Bh5 {[%emt 0:00:10]} 28. f3 {[%emt 0:03:21]} Kf7 {[%emt 0:00:05]} 29. Kf2 {[%emt 0:00:14]} Bg6 {[%emt 0:00:14]} 30. Nc2 {[%emt 0:01:05]} Ng7 {[%emt 0:00:19]} 31. Ne3 {[%emt 0:04:38]} Ne6 {[%emt 0:00:09]} 32. Ke2 {[%emt 0:01:10]} Ke7 {[%emt 0:01:36]} 33. Kd2 {[%emt 0:00:52]} Bb1 {[%emt 0:00:55]} 34. Kc1 {[%emt 0:01:29]} Bd3 {[%emt 0:00:11]} 35. Kd2 {[%emt 0:00:02]} Ba6 {[%emt 0:01:11]} 36. Nf5+ {[%emt 0:04:19]} Kf7 {[%emt 0:02:32]} 37. Ke1 {[%emt 0:05:10]} Nf4 {[%emt 0:00:59]} 38. Ne3 {[%emt 0:01:49]} Ne2 {[%emt 0:01:16]} 39. Bxa5 {[%emt 0:03:16]} Nxd4 {[%emt 0:00:06]} 40. b4 {[%emt 0:00:32]} Ne6 {[%emt 0:06:54]} 41. Nf5 {[%emt 0:02:02]} Bc4 {[%emt 0:07:44]} 42. Nd6+ {[%emt 0:01:03]} Ke7 {[%emt 0:00:01]} 43. Nxb7 {[%emt 0:01:22]} Bb3 {[%emt 0:02:40]} 44. b5 {[%emt 0:00:12]} Bxa4 {[%emt 0:00:01]} 45. b6 {[%emt 0:00:34]} Kd7 {[%emt 0:00:01]} 46. Bb4 {[%emt 0:01:00]} Bb5 {[%emt 0:00:16]} 47. Nd6 {[%emt 0:01:01]} Ba6 {[%emt 0:00:12]} 48. Nf5 {[%emt 0:02:08]} Nf4 {[%emt 0:00:41]} 49. Bc3 {[%emt 0:02:00]} Nxg2+ {[%emt 0:00:51]} 50. Kf2 {[%emt 0:00:12]} Nf4 {[%emt 0:00:01]} 51. Bxf6 {[%emt 0:05:01]} Ke6 {[%emt 0:00:10]} 52. Bxg5 {[%emt 0:00:34]} Nxh3+ {[%emt 0:00:27]} 53. Ke3 {[%emt 0:00:07]} Nxg5 {[%emt 0:00:05]} 54. Nxh4 {[%emt 0:00:03]} Kf6 {[%emt 0:00:15]} 55. f4 {[%emt 0:01:29]} Ne6 {[%emt 0:00:02]} 56. Nf3 {[%emt 0:00:05]} Nxc5 {[%emt 0:00:09]} 57. Ne5 {[%emt 0:00:28]} Bb7 {[%emt 0:00:03]} 58. Kd4 {[%emt 0:01:00]} Ne6+ {[%emt 0:00:03]} 59. Ke3 {[%emt 0:00:03]} c5 {[%emt 0:00:41]} 60. Ng4+ {[%emt 0:00:13]} Ke7 {[%emt 0:00:18]} 61. f5 {[%emt 0:00:16]} d4+ {[%emt 0:00:17]} 62. Kd3 {[%emt 0:00:09]} Nf4+ {[%emt 0:00:06]} 63. Kc4 {[%emt 0:00:05]} Kd6 {[%emt 0:00:05]} 64. f6 {[%emt 0:00:10]} Ba6+ {[%emt 0:00:07]} 65. Kb3 {[%emt 0:00:09]} Ke6 {[%emt 0:00:11]} 66. Nf2 {[%emt 0:00:29]} c4+ {[%emt 0:00:28]} 67. Kc2 {[%emt 0:00:30]} Bb7 {[%emt 0:00:13]} 68. Ng4 {[%emt 0:00:04]} Be4+ {[%emt 0:00:05]} 69. Kd2 {[%emt 0:00:03]} c3+ {[%emt 0:00:04]} 70. Kc1 {[%emt 0:00:06]} Ne2+ {[%emt 0:00:14]} 0-1

[Event "1st Bangalore GM-Open-A 2024"]
[Site "Bangalore"]
[Date "2024.01.23"]
[Round "7.40"]
[White "Jain Kashish Manoj"]
[Black "Dhananjay S"]
[Result "1-0"]
[ECO "B12"]
[WhiteElo "2334"]
[BlackElo "2151"]
[Annotator "RC"]
[PlyCount "105"]
[EventDate "2024.01.20"]
[EventType "swiss"]
[EventCountry "IND"]
[SourceTitle "playchess.com"]
[Source "ChessBase"]
[SourceQuality "1"]
[TimeControl "5400+30"]

1. e4 {[%emt 0:00:05]} c6 {[%emt 0:06:52]} 2. d4 {[%emt 0:00:14]} d5 {[%emt 0:00:11]} 3. e5 {[%emt 0:00:04]} c5 {[%emt 0:00:03]} 4. Nf3 {[%emt 0:00:34]} cxd4 {[%emt 0:02:15]} 5. Qxd4 {[%emt 0:00:13]} Nc6 {[%emt 0:00:11]} 6. Qf4 {[%emt 0:00:08]} e6 {[%emt 0:00:03]} 7. Bd3 {[%emt 0:00:29]} Nb4 {[%emt 0:01:06]} 8. Nc3 {[%emt 0:02:56]} Nxd3+ {[%emt 0:05:01]} 9. cxd3 {[%emt 0:00:02]} Ne7 {[%emt 0:00:55]} 10. Bd2 {[%emt 0:01:33]} Nc6 {[%emt 0:01:12]} 11. O-O {[%emt 0:07:50]} Be7 {[%emt 0:00:06]} 12. Qg3 {[%emt 0:01:40]} Rg8 {[%emt 0:07:06]} 13. a3 {[%emt 0:06:53]} Bd7 {[%emt 0:01:35]} 14. Rac1 {[%emt 0:06:24]} Qb6 {[%emt 0:02:38]} 15. b4 {[%emt 0:17:20]} Nd4 {[%emt 0:08:57]} 16. Nxd4 {[%emt 0:10:39]} Qxd4 {[%emt 0:00:16]} 17. Ne2 {[%emt 0:00:25]} Qb6 {[%emt 0:06:10]} 18. Bg5 {[%emt 0:03:16]} Bxg5 {[%emt 0:25:21]} 19. Qxg5 {[%emt 0:00:17]} a5 {[%emt 0:01:03]} 20. Rb1 {[%emt 0:12:05]} h6 {[%emt 0:02:23]} 21. Qf4 {[%emt 0:09:48]} Qa6 {[%emt 0:09:19]} 22. bxa5 {[%emt 0:03:20]} Qxd3 {[%emt 0:04:07]} 23. Rxb7 {[%emt 0:02:45]} Rd8 {[%emt 0:00:24]} 24. Nd4 {[%emt 0:02:00]} g5 {[%emt 0:03:15]} 25. Qe3 {[%emt 0:00:21]} Qa6 {[%emt 0:00:23]} 26. Rfb1 {[%emt 0:00:24]} Rc8 {[%emt 0:00:10]} 27. Qd2 {[%emt 0:04:01]} Qc4 {[%emt 0:01:12]} 28. g3 {[%emt 0:01:53]} h5 {[%emt 0:03:30]} 29. h3 {[%emt 0:02:46]} h4 {[%emt 0:03:03]} 30. g4 {[%emt 0:00:09]} Ke7 {[%emt 0:02:03]} 31. Ra7 {[%emt 0:04:17]} Rgd8 {[%emt 0:03:55]} 32. Qxg5+ {[%emt 0:00:51]} Kf8 {[%emt 0:00:01]} 33. Qh6+ {[%emt 0:00:37]} Kg8 {[%emt 0:00:01]} 34. Qg5+ {[%emt 0:00:30]} Kf8 {[%emt 0:00:00]} 35. Qxh4 {[%emt 0:00:37]} Qxd4 {[%emt 0:01:56]} 36. Rxd7 {[%emt 0:00:17]} Rxd7 {[%emt 0:00:02]} 37. Qh8+ {[%emt 0:00:03]} Ke7 {[%emt 0:00:04]} 38. Qxc8 {[%emt 0:00:02]} Qxe5 {[%emt 0:00:05]} 39. Qc5+ {[%emt 0:01:35]} Kf6 {[%emt 0:00:31]} 40. a6 {[%emt 0:00:32]} Rc7 {[%emt 0:00:30]} 41. Qf8 {[%emt 0:00:32]} Kg6 {[%emt 0:01:03]} 42. Qg8+ {[%emt 0:00:09]} Kh6 {[%emt 0:00:05]} 43. Qd8 {[%emt 0:00:49]} Qf4 {[%emt 0:01:13]} 44. Qh8+ {[%emt 0:00:31]} Kg6 {[%emt 0:00:19]} 45. Re1 {[%emt 0:00:31]} d4 {[%emt 0:01:21]} 46. Qg8+ {[%emt 0:00:27]} Kh6 {[%emt 0:00:38]} 47. Qh8+ {[%emt 0:00:01]} Kg6 {[%emt 0:00:01]} 48. Qg8+ {[%emt 0:00:06]} Kh6 {[%emt 0:00:04]} 49. Qf8+ {[%emt 0:00:46]} Kh7 {[%emt 0:00:38]} 50. Qb8 {[%emt 0:00:01]} d3 {[%emt 0:00:42]} 51. a7 {[%emt 0:00:55]} d2 {[%emt 0:00:49]} 52. Rf1 {[%emt 0:00:26]} Qc4 {[%emt 0:01:04]} 53. a8=Q {[%emt 0:00:55]} 1-0

[Event "1st Bangalore GM-Open-A 2024"]
[Site "Bangalore"]
[Date "2024.01.24"]
[Round "8.1"]
[White "Sethuraman, S.P."]
[Black "Gupta, Abhijeet"]
[Result "1-0"]
[ECO "C54"]
[WhiteElo "2594"]
[BlackElo "2605"]
[Annotator "RC"]
[PlyCount "109"]
[EventDate "2024.01.20"]
[EventType "swiss"]
[EventCountry "IND"]
[SourceTitle "playchess.com"]
[Source "ChessBase"]
[SourceQuality "1"]
[TimeControl "5400+30"]

1. e4 {[%emt 0:00:19]} e5 {[%emt 0:00:10]} 2. Nf3 {[%emt 0:00:07]} Nc6 {[%emt 0:00:09]} 3. Bc4 {[%emt 0:00:07]} Nf6 {[%emt 0:00:08]} 4. d3 {[%emt 0:00:08]} Bc5 {[%emt 0:00:09]} 5. c3 {[%emt 0:00:07]} a6 {[%emt 0:00:37]} 6. a4 {[%emt 0:01:08]} d6 {[%emt 0:00:36]} 7. Bg5 {[%emt 0:00:16]} h6 {[%emt 0:00:10]} 8. Bh4 {[%emt 0:00:08]} Ba7 {[%emt 0:00:30]} 9. Nbd2 {[%emt 0:00:13]} Qe7 {[%emt 0:00:28]} 10. O-O {[%emt 0:00:42]} g5 {[%emt 0:00:39]} 11. Bg3 {[%emt 0:00:07]} O-O {[%emt 0:00:36]} 12. Re1 {[%emt 0:07:34]} Nh7 {[%emt 0:02:14]} 13. h3 {[%emt 0:16:49]} h5 {[%emt 0:02:59]} 14. d4 {[%emt 0:00:04]} h4 {[%emt 0:02:48]} 15. Bh2 {[%emt 0:00:04]} g4 {[%emt 0:00:12]} 16. hxg4 {[%emt 0:00:05]} Bxg4 {[%emt 0:00:04]} 17. Be2 {[%emt 0:00:44]} Kh8 {[%emt 0:09:21]} 18. Nxe5 {[%emt 0:01:43]} Nxe5 {[%emt 0:00:16]} 19. Bxg4 {[%emt 0:02:37]} Nxg4 {[%emt 0:00:06]} 20. Qxg4 {[%emt 0:00:04]} Rg8 {[%emt 0:00:05]} 21. Qh3 {[%emt 0:03:57]} Qe6 {[%emt 0:00:21]} 22. Kh1 {[%emt 0:19:07]} Rg4 {[%emt 0:08:37]} 23. f3 {[%emt 0:00:41]} Rg6 {[%emt 0:00:06]} 24. f4 {[%emt 0:00:55]} Qg4 {[%emt 0:04:00]} 25. Nf3 {[%emt 0:06:39]} Rag8 {[%emt 0:00:06]} 26. Re2 {[%emt 0:04:09]} Rh6 {[%emt 0:23:54]} 27. Rae1 {[%emt 0:02:09]} c5 {[%emt 0:00:23]} 28. d5 {[%emt 0:02:07]} c4 {[%emt 0:03:44]} 29. e5 {[%emt 0:00:08]} Bc5 {[%emt 0:00:37]} 30. Qxg4 {[%emt 0:12:59]} Rxg4 {[%emt 0:00:04]} 31. e6 {[%emt 0:00:02]} fxe6 {[%emt 0:02:14]} 32. dxe6 {[%emt 0:00:35]} Rg8 {[%emt 0:00:12]} 33. e7 {[%emt 0:00:30]} Re8 {[%emt 0:00:04]} 34. Re6 {[%emt 0:00:14]} Rxe6 {[%emt 0:07:24]} 35. Rxe6 {[%emt 0:00:10]} Kg7 {[%emt 0:00:04]} 36. f5 {[%emt 0:01:37]} Kf7 {[%emt 0:02:19]} 37. Bxd6 {[%emt 0:05:07]} Bxd6 {[%emt 0:00:04]} 38. Rxd6 {[%emt 0:00:06]} Rxe7 {[%emt 0:00:03]} 39. Nxh4 {[%emt 0:00:14]} Nf6 {[%emt 0:00:06]} 40. Kh2 {[%emt 0:01:30]} Re3 {[%emt 0:05:44]} 41. Nf3 {[%emt 0:01:11]} Re2 {[%emt 0:00:06]} 42. Rb6 {[%emt 0:01:09]} Nd5 {[%emt 0:00:09]} 43. Rxb7+ {[%emt 0:00:47]} Kf6 {[%emt 0:00:04]} 44. Nd4 {[%emt 0:00:23]} Rd2 {[%emt 0:00:35]} 45. Kg3 {[%emt 0:01:11]} Rd3+ {[%emt 0:00:37]} 46. Kf2 {[%emt 0:01:44]} Ke5 {[%emt 0:00:46]} 47. Rb8 {[%emt 0:02:21]} Nf6 {[%emt 0:02:48]} 48. Ke2 {[%emt 0:02:00]} Rg3 {[%emt 0:00:17]} 49. Rb6 {[%emt 0:00:52]} Ne4 {[%emt 0:04:36]} 50. Kf1 {[%emt 0:02:25]} Rd3 {[%emt 0:05:29]} 51. f6 {[%emt 0:01:37]} Rd1+ {[%emt 0:05:55]} 52. Ke2 {[%emt 0:00:06]} Rd2+ {[%emt 0:00:03]} 53. Ke1 {[%emt 0:00:12]} Rxg2 {[%emt 0:00:10]} 54. Re6+ {[%emt 0:01:51]} Kd5 {[%emt 0:00:08]} 55. Rxe4 {[%emt 0:00:43]} 1-0

[Event "1st Bangalore GM-Open-A 2024"]
[Site "Bangalore"]
[Date "2024.01.24"]
[Round "8.2"]
[White "Mitrabha, Guha"]
[Black "Short, Nigel D"]
[Result "1/2-1/2"]
[ECO "D56"]
[WhiteElo "2504"]
[BlackElo "2592"]
[Annotator "TA"]
[PlyCount "60"]
[EventDate "2024.01.20"]
[EventType "swiss"]
[EventCountry "IND"]
[SourceTitle "playchess.com"]
[Source "ChessBase"]
[SourceQuality "1"]
[TimeControl "5400+30"]

{[%evp 17,60,8,8,0,0,0,0,-13,-13,-14,0,0,0,-25,-27,-22,-20,-25,-23,-79,-10,-12,-13,-8,-11,-13,0,0,0,0,0,-4,0,0,0,-10,-8,-9,0,0,0,0,0,-1,0]} 1. d4 {[%emt 0:01:47]} d5 {[%emt 0:00:22]} 2. c4 {[%emt 0:00:14]} e6 {[%emt 0:00:07]} 3. Nc3 {[%emt 0:00:13]} Be7 {[%emt 0:00:15]} 4. Nf3 {[%emt 0:00:24]} Nf6 {[%emt 0:00:12]} 5. Bg5 {[%emt 0:00:29]} h6 {[%emt 0:00:55]} 6. Bh4 {[%emt 0:00:10]} Nbd7 {[%emt 0:01:56]} 7. e3 {[%emt 0:01:07]} O-O {[%emt 0:01:34]} 8. cxd5 {[%emt 0:01:08]} Nxd5 {[%emt 0:00:14]} 9. Bxe7 {[%emt 0:00:29]} Qxe7 {[%emt 0:00:12]} 10. Rc1 {[%emt 0:01:41]} Nxc3 {[%emt 0:04:40]} 11. Rxc3 {[%emt 0:00:12]} c6 {[%emt 0:00:06]} 12. Bc4 {[%emt 0:03:24]} b6 {[%emt 0:02:05]} 13. Qe2 {[%emt 0:03:12]} c5 {[%emt 0:02:32]} 14. Bb5 {[%emt 0:01:32]} Rd8 {[%emt 0:10:41]} 15. Bxd7 {[%emt 0:05:02]} Qxd7 {[%emt 0:01:33]} 16. O-O {[%emt 0:09:00]} cxd4 {[%emt 0:02:12]} 17. Nxd4 {[%emt 0:00:36]} Bb7 {[%emt 0:00:07] Wards off Nc6} 18. Rfc1 {[%emt 0:00:14] [#]} (18. a3 $11) 18... Rac8 {[%emt 0:00:48]} (18... Qd5 $1 $17 {[%csl Gb7][%cal Rd5g2]} 19. f3 Qe5 (19... Qxa2 20. Qb5 $17)) 19. Rxc8 $11 {[%emt 0:00:08] The position is equal.} Rxc8 {[%emt 0:00:08]} 20. Rxc8+ {[%emt 0:00:06]} Qxc8 {[%emt 0:00:08][%mdl 4096] Endgame. KQB-KQN} 21. Qc2 {[%emt 0:00:04]} Qd7 {[%emt 0:04:27]} 22. f3 {[%emt 0:00:38]} g6 {[%emt 0:08:21]} 23. a3 {[%emt 0:00:52]} e5 {[%emt 0:00:43]} 24. Ne2 {[%emt 0:00:37]} Qd6 {[%emt 0:03:45]} 25. Nc3 {[%emt 0:00:39]} Bc6 {[%emt 0:00:12]} 26. Qd1 {[%emt 0:00:15]} Qxd1+ {[%emt 0:02:49]} 27. Nxd1 {[%emt 0:00:35]} Kf8 {[%emt 0:00:34]} 28. Nc3 {[%emt 0:00:06]} Ke7 {[%emt 0:00:05]} 29. b4 {[%emt 0:00:02]} Ke6 {[%emt 0:00:16]} 30. Kf2 {[%emt 0:00:03]} f6 {[%emt 0:00:50] Weighted Error Value: White=0.09 (flawless) /Black=0.09 (flawless) .  Mistake:       	White=1     	Black=1      OK:         	White=7     	Black=5} 1/2-1/2

[Event "1st Bangalore GM-Open-A 2024"]
[Site "Bangalore"]
[Date "2024.01.24"]
[Round "8.3"]
[White "Neelotpal, Das"]
[Black "Shyam, Sundar M."]
[Result "1/2-1/2"]
[ECO "E92"]
[WhiteElo "2329"]
[BlackElo "2497"]
[Annotator "RC"]
[PlyCount "142"]
[EventDate "2024.01.20"]
[EventType "swiss"]
[EventCountry "IND"]
[SourceTitle "playchess.com"]
[Source "ChessBase"]
[SourceQuality "1"]
[TimeControl "5400+30"]

1. d4 {[%emt 0:00:06]} Nf6 {[%emt 0:00:17]} 2. c4 {[%emt 0:00:13]} g6 {[%emt 0:00:06]} 3. Nc3 {[%emt 0:01:28]} Bg7 {[%emt 0:00:09]} 4. e4 {[%emt 0:01:04]} d6 {[%emt 0:00:04]} 5. Nf3 {[%emt 0:01:41]} O-O {[%emt 0:00:07]} 6. Be2 {[%emt 0:04:59]} e5 {[%emt 0:03:06]} 7. Be3 {[%emt 0:02:54]} Ng4 {[%emt 0:01:49]} 8. Bg5 {[%emt 0:00:27]} f6 {[%emt 0:00:05]} 9. Bc1 {[%emt 0:00:17]} Nc6 {[%emt 0:01:30]} 10. d5 {[%emt 0:08:09]} Ne7 {[%emt 0:01:18]} 11. h3 {[%emt 0:00:08]} Nh6 {[%emt 0:00:06]} 12. h4 {[%emt 0:01:21]} c6 {[%emt 0:17:49]} 13. h5 {[%emt 0:04:01]} g5 {[%emt 0:00:11]} 14. Nh2 {[%emt 0:00:05]} cxd5 {[%emt 0:03:12]} 15. cxd5 {[%emt 0:00:18]} Bd7 {[%emt 0:01:34]} 16. g4 {[%emt 0:05:06]} Qb6 {[%emt 0:14:24]} 17. Qb3 {[%emt 0:00:38]} Nc8 {[%emt 0:30:27]} 18. Be3 {[%emt 0:12:29]} Qxb3 {[%emt 0:02:06]} 19. axb3 {[%emt 0:00:07]} Rf7 {[%emt 0:00:01]} 20. Kd2 {[%emt 0:03:55]} Bf8 {[%emt 0:00:04]} 21. Nb5 {[%emt 0:05:28]} Bxb5 {[%emt 0:03:32]} 22. Bxb5 {[%emt 0:00:05]} Be7 {[%emt 0:00:01]} 23. Bd7 {[%emt 0:01:23]} Bd8 {[%emt 0:00:01]} 24. Be6 {[%emt 0:00:48]} Kf8 {[%emt 0:00:01]} 25. Bxf7 {[%emt 0:00:15]} Kxf7 {[%emt 0:00:07]} 26. Rhc1 {[%emt 0:00:44]} Ke8 {[%emt 0:00:14]} 27. f3 {[%emt 0:00:17]} Ng8 {[%emt 0:00:08]} 28. Nf1 {[%emt 0:00:16]} Nge7 {[%emt 0:00:03]} 29. Ke2 {[%emt 0:02:31]} a6 {[%emt 0:08:47]} 30. Nd2 {[%emt 0:00:39]} Na7 {[%emt 0:00:35]} 31. Bxa7 {[%emt 0:01:49]} Rxa7 {[%emt 0:00:07]} 32. Nc4 {[%emt 0:00:05]} Kd7 {[%emt 0:00:09]} 33. b4 {[%emt 0:00:04]} Nc8 {[%emt 0:01:13]} 34. Rc2 {[%emt 0:00:53]} Nb6 {[%emt 0:07:09]} 35. b3 {[%emt 0:08:34]} Ra8 {[%emt 0:01:14]} 36. b5 {[%emt 0:13:44]} Nxc4 {[%emt 0:00:11]} 37. Rxc4 {[%emt 0:00:04]} a5 {[%emt 0:00:10]} 38. b4 {[%emt 0:00:20]} a4 {[%emt 0:00:05]} 39. Rc3 {[%emt 0:00:57]} Bb6 {[%emt 0:00:26]} 40. Rca3 {[%emt 0:00:03]} Kc7 {[%emt 0:04:39]} 41. Kd3 {[%emt 0:00:26]} h6 {[%emt 0:01:04]} 42. Rc1+ {[%emt 0:02:22]} Kd7 {[%emt 0:00:06]} 43. Rc4 {[%emt 0:01:14]} Ra7 {[%emt 0:00:15]} 44. Rc2 {[%emt 0:05:59]} Ra8 {[%emt 0:00:01]} 45. Rca2 {[%emt 0:02:24]} Kc7 {[%emt 0:00:02]} 46. Rb3 {[%emt 0:00:32]} Bd4 {[%emt 0:00:57]} 47. Rba3 {[%emt 0:00:55]} Bb6 {[%emt 0:00:01]} 48. Kc4 {[%emt 0:00:25]} Ra7 {[%emt 0:01:06]} 49. Rxa4 {[%emt 0:01:16]} Rxa4 {[%emt 0:00:02]} 50. Rxa4 {[%emt 0:00:03]} Kb8 {[%emt 0:00:03]} 51. Ra2 {[%emt 0:00:11]} Be3 {[%emt 0:00:21]} 52. Kb3 {[%emt 0:03:02]} Bb6 {[%emt 0:00:26]} 53. Rc2 {[%emt 0:00:20]} Bd4 {[%emt 0:00:00]} 54. Rc4 {[%emt 0:01:43]} Be3 {[%emt 0:00:09]} 55. Ka4 {[%emt 0:01:02]} Bb6 {[%emt 0:00:02]} 56. Rc2 {[%emt 0:00:35]} Bd8 {[%emt 0:00:06]} 57. b6 {[%emt 0:00:12]} Bxb6 {[%emt 0:00:02]} 58. Kb5 {[%emt 0:00:03]} Bd4 {[%emt 0:03:53]} 59. Ka5 {[%emt 0:00:52]} Be3 {[%emt 0:00:06]} 60. b5 {[%emt 0:01:05]} b6+ {[%emt 0:00:03]} 61. Ka6 {[%emt 0:05:40]} Bc5 {[%emt 0:00:04]} 62. Rc4 {[%emt 0:00:08]} Ka8 {[%emt 0:00:05]} 63. Rc2 {[%emt 0:00:43]} Kb8 {[%emt 0:00:01]} 64. Rc1 {[%emt 0:00:35]} Ka8 {[%emt 0:00:01]} 65. Rh1 {[%emt 0:00:30]} Kb8 {[%emt 0:00:01]} 66. Rh3 {[%emt 0:00:05]} Ka8 {[%emt 0:00:15]} 67. Rg3 {[%emt 0:00:35]} Kb8 {[%emt 0:00:07]} 68. Rg2 {[%emt 0:00:05]} Ka8 {[%emt 0:00:14]} 69. Rc2 {[%emt 0:00:37]} Kb8 {[%emt 0:00:01]} 70. Rc4 {[%emt 0:01:19]} Ka8 {[%emt 0:00:07]} 71. Rc2 {[%emt 0:01:15]} Kb8 {[%emt 0:00:03]} 1/2-1/2